[Event "*** Titled Tuesday Blitz"]
[Site "Chess.com"]
[Date "2021.04.20"]
[Round "4"]
[White "VinzentSpitzl"]
[Black "olksuna"]
[Result "0-1"]
[WhiteElo "2431"]
[BlackElo "2655"]
[TimeControl "180+1"]
[EndTime "10:38:18 PDT"]
[Termination "olksuna won by resignation"]

1. e4 {[%clk 0:03:00.9]} 1... e6 {[%clk 0:03:00.2]} 2. d4 {[%clk 0:02:58.6]}
2... d5 {[%clk 0:03:00.6]} 3. Bd3 {[%clk 0:02:57.5]} 3... c5 {[%clk 0:02:55.7]}
4. exd5 {[%clk 0:02:57.3]} 4... exd5 {[%clk 0:02:55.6]} 5. Nf3 {[%clk
0:02:57.3]} 5... c4 {[%clk 0:02:54.4]} 6. Be2 {[%clk 0:02:57.2]} 6... Nf6 {[%clk
0:02:53.8]} 7. O-O {[%clk 0:02:57.6]} 7... Be7 {[%clk 0:02:53.8]} 8. b3 {[%clk
0:02:58]} 8... cxb3 {[%clk 0:02:53.8]} 9. axb3 {[%clk 0:02:58.9]} 9... O-O
{[%clk 0:02:54.3]} 10. h3 {[%clk 0:02:56.4]} 10... Nc6 {[%clk 0:02:54.6]} 11. c4
{[%clk 0:02:55.8]} 11... Re8 {[%clk 0:02:45.6]} 12. Ba3 {[%clk 0:02:48.6]} 12...
Bxa3 {[%clk 0:02:41.9]} 13. Nxa3 {[%clk 0:02:41]} 13... Ne4 {[%clk 0:02:32.5]}
14. Bd3 {[%clk 0:02:40.6]} 14... Bf5 {[%clk 0:02:27.2]} 15. Re1 {[%clk
0:02:29.6]} 15... Nb4 {[%clk 0:02:16.7]} 16. Bxe4 {[%clk 0:02:17.7]} 16... dxe4
{[%clk 0:02:00]} 17. Ne5 {[%clk 0:02:12.3]} 17... Nd3 {[%clk 0:01:50.3]} 18.
Nxd3 {[%clk 0:02:10.5]} 18... exd3 {[%clk 0:01:51.2]} 19. Rxe8+ {[%clk
0:02:03.3]} 19... Qxe8 {[%clk 0:01:52.1]} 20. Nb5 {[%clk 0:02:03.6]} 20... Qe7
{[%clk 0:01:16.8]} 21. Qd2 {[%clk 0:01:42.4]} 21... a6 {[%clk 0:01:04.6]} 22.
Nc3 {[%clk 0:01:30.4]} 22... Qb4 {[%clk 0:01:03.3]} 23. g4 {[%clk 0:01:15.7]}
23... Bg6 {[%clk 0:01:00.4]} 24. f4 {[%clk 0:01:15.9]} 24... Qxb3 {[%clk
0:00:48]} 25. f5 {[%clk 0:01:10.5]} 25... Qxc4 {[%clk 0:00:48.2]} 26. fxg6
{[%clk 0:01:04.9]} 26... Qxd4+ {[%clk 0:00:48.4]} 27. Kg2 {[%clk 0:01:01.3]}
27... hxg6 {[%clk 0:00:45]} 28. Ra4 {[%clk 0:00:50.6]} 28... Qd7 {[%clk
0:00:38]} 29. Ra5 {[%clk 0:00:35.1]} 29... Qc6+ {[%clk 0:00:19.2]} 30. Kf1
{[%clk 0:00:18]} 30... Rc8 {[%clk 0:00:17.8]} 31. Nd5 {[%clk 0:00:09.4]} 31...
Qc1+ {[%clk 0:00:16.5]} 32. Qxc1 {[%clk 0:00:07.2]} 32... Rxc1+ {[%clk
0:00:17.4]} 33. Kf2 {[%clk 0:00:07.5]} 33... d2 {[%clk 0:00:17.9]} 34. Ne3
{[%clk 0:00:03.7]} 34... d1=Q {[%clk 0:00:17.7]} 35. Nxd1 {[%clk 0:00:04.1]}
35... Rxd1 {[%clk 0:00:18.6]} 36. Re5 {[%clk 0:00:04.4]} 36... Rd7 {[%clk
0:00:18.3]} 37. Re8+ {[%clk 0:00:04.3]} 37... Kh7 {[%clk 0:00:18.7]} 38. g5
{[%clk 0:00:05.2]} 38... f6 {[%clk 0:00:18.1]} 39. h4 {[%clk 0:00:05.2]} 39...
fxg5 {[%clk 0:00:18.4]} 40. hxg5 {[%clk 0:00:06.1]} 40... Rd5 {[%clk 0:00:14.8]}
41. Rb8 {[%clk 0:00:05.5]} 41... b5 {[%clk 0:00:14.6]} 42. Rb6 {[%clk
0:00:05.7]} 42... a5 {[%clk 0:00:13.8]} 43. Ke3 {[%clk 0:00:06.1]} 43... a4
{[%clk 0:00:14]} 44. Kf4 {[%clk 0:00:05.8]} 44... Rc5 {[%clk 0:00:14.2]} 0-1

[Event "*** Titled Tuesday Blitz"]
[Site "Chess.com"]
[Date "2021.04.20"]
[Round "4"]
[White "Steven_Rojas"]
[Black "elcandado"]
[Result "0-1"]
[WhiteElo "2476"]
[BlackElo "2646"]
[TimeControl "180+1"]
[EndTime "10:38:21 PDT"]
[Termination "elcandado won by resignation"]

1. c4 {[%clk 0:03:00.9]} 1... e6 {[%clk 0:02:59.4]} 2. Nc3 {[%clk 0:02:55]} 2...
d5 {[%clk 0:02:57.1]} 3. d4 {[%clk 0:02:53]} 3... Nf6 {[%clk 0:02:56.4]} 4. cxd5
{[%clk 0:02:50.6]} 4... Nxd5 {[%clk 0:02:56.1]} 5. e4 {[%clk 0:02:43.2]} 5...
Nxc3 {[%clk 0:02:55.8]} 6. bxc3 {[%clk 0:02:44]} 6... c5 {[%clk 0:02:56.1]} 7.
Nf3 {[%clk 0:02:29.2]} 7... cxd4 {[%clk 0:02:55.3]} 8. cxd4 {[%clk 0:02:28.2]}
8... Bb4+ {[%clk 0:02:55.7]} 9. Bd2 {[%clk 0:02:28.3]} 9... Bxd2+ {[%clk
0:02:56.2]} 10. Qxd2 {[%clk 0:02:29.2]} 10... O-O {[%clk 0:02:56.2]} 11. Be2
{[%clk 0:01:57.3]} 11... b6 {[%clk 0:02:55.2]} 12. O-O {[%clk 0:01:48.3]} 12...
Bb7 {[%clk 0:02:55]} 13. Qf4 {[%clk 0:01:44.3]} 13... Nd7 {[%clk 0:02:52.4]} 14.
Rfe1 {[%clk 0:01:42.7]} 14... Rc8 {[%clk 0:02:50.9]} 15. Rac1 {[%clk 0:01:34.8]}
15... Rxc1 {[%clk 0:02:41.1]} 16. Rxc1 {[%clk 0:01:35.7]} 16... Qa8 {[%clk
0:02:40.4]} 17. Bd3 {[%clk 0:01:33.6]} 17... Rc8 {[%clk 0:02:31.9]} 18. Ng5
{[%clk 0:01:26]} 18... Rxc1+ {[%clk 0:02:24.4]} 19. Qxc1 {[%clk 0:01:26.9]}
19... h6 {[%clk 0:02:20.5]} 20. Nf3 {[%clk 0:01:00.3]} 20... Bxe4 {[%clk
0:02:16.4]} 21. Bxe4 {[%clk 0:00:57.3]} 21... Qxe4 {[%clk 0:02:17.3]} 22. h3
{[%clk 0:00:57.7]} 22... Qb7 {[%clk 0:02:01.1]} 23. Qa3 {[%clk 0:00:56.7]} 23...
Nf6 {[%clk 0:01:53.6]} 24. Ne5 {[%clk 0:00:56.6]} 24... Qc7 {[%clk 0:01:38.9]}
25. Qa4 {[%clk 0:00:43]} 25... Qc1+ {[%clk 0:01:25.7]} 26. Kh2 {[%clk
0:00:42.9]} 26... Qf4+ {[%clk 0:01:24.8]} 27. Kg1 {[%clk 0:00:43.4]} 27... Ne4
{[%clk 0:01:05.7]} 28. Qe8+ {[%clk 0:00:42.3]} 28... Kh7 {[%clk 0:01:05.1]} 29.
Qxf7 {[%clk 0:00:40.1]} 29... Qxf7 {[%clk 0:01:02.8]} 30. Nxf7 {[%clk 0:00:41]}
30... Nc3 {[%clk 0:01:02.8]} 31. Nd8 {[%clk 0:00:36.9]} 31... Ne2+ {[%clk
0:01:00]} 32. Kf1 {[%clk 0:00:35.3]} 32... Nxd4 {[%clk 0:01:00.9]} 33. Ke1
{[%clk 0:00:34.6]} 33... Kg6 {[%clk 0:00:55.3]} 34. Kd2 {[%clk 0:00:30.4]} 34...
Kf6 {[%clk 0:00:55.5]} 35. Kd3 {[%clk 0:00:31]} 35... Ke7 {[%clk 0:00:53.8]} 36.
Nb7 {[%clk 0:00:22.5]} 36... Nf5 {[%clk 0:00:46.7]} 37. Kc4 {[%clk 0:00:17.6]}
37... a6 {[%clk 0:00:42.4]} 38. g4 {[%clk 0:00:14.4]} 38... Nd6+ {[%clk
0:00:41.3]} 39. Nxd6 {[%clk 0:00:15]} 39... Kxd6 {[%clk 0:00:42.1]} 40. a4
{[%clk 0:00:15.7]} 40... Ke5 {[%clk 0:00:38.7]} 41. Kd3 {[%clk 0:00:14.3]} 41...
Kf4 {[%clk 0:00:37.7]} 42. Ke2 {[%clk 0:00:14.9]} 42... b5 {[%clk 0:00:36.3]}
43. a5 {[%clk 0:00:14.7]} 43... g5 {[%clk 0:00:31.8]} 44. Kd3 {[%clk 0:00:13]}
44... Kf3 {[%clk 0:00:28.9]} 45. Kd4 {[%clk 0:00:13.3]} 45... Kxf2 {[%clk
0:00:27.6]} 46. Kc5 {[%clk 0:00:13.8]} 46... e5 {[%clk 0:00:23.4]} 47. Kb6
{[%clk 0:00:13.5]} 47... e4 {[%clk 0:00:23.3]} 48. Kxa6 {[%clk 0:00:13.9]} 48...
e3 {[%clk 0:00:23.8]} 49. Kxb5 {[%clk 0:00:13.4]} 49... e2 {[%clk 0:00:23.8]}
50. a6 {[%clk 0:00:14.3]} 50... e1=Q {[%clk 0:00:23.7]} 51. a7 {[%clk
0:00:15.2]} 51... Qe4 {[%clk 0:00:22.9]} 52. Kb6 {[%clk 0:00:16.1]} 52... Qa8
{[%clk 0:00:22.8]} 53. h4 {[%clk 0:00:16.8]} 53... gxh4 {[%clk 0:00:22.1]} 54.
g5 {[%clk 0:00:17.5]} 54... hxg5 {[%clk 0:00:21.4]} 55. Kc7 {[%clk 0:00:17.3]}
55... h3 {[%clk 0:00:20.9]} 56. Kd6 {[%clk 0:00:18.2]} 56... h2 {[%clk
0:00:20.9]} 57. Ke5 {[%clk 0:00:19.1]} 57... h1=Q {[%clk 0:00:20.1]} 58. Kf6
{[%clk 0:00:20]} 0-1

[Event "*** Titled Tuesday Blitz"]
[Site "Chess.com"]
[Date "2021.04.20"]
[Round "4"]
[White "artichaud"]
[Black "Kaua18"]
[Result "1-0"]
[WhiteElo "2229"]
[BlackElo "2399"]
[TimeControl "180+1"]
[EndTime "10:38:21 PDT"]
[Termination "artichaud won by checkmate"]

1. e4 {[%clk 0:03:00]} 1... c5 {[%clk 0:02:58.9]} 2. Nc3 {[%clk 0:02:59.5]} 2...
Nc6 {[%clk 0:02:58.3]} 3. g4 {[%clk 0:02:59.3]} 3... d6 {[%clk 0:02:54.4]} 4. d3
{[%clk 0:02:55.7]} 4... h5 {[%clk 0:02:52.3]} 5. g5 {[%clk 0:02:55]} 5... g6
{[%clk 0:02:41]} 6. f4 {[%clk 0:02:46.1]} 6... Bg7 {[%clk 0:02:40.6]} 7. Bg2
{[%clk 0:02:39]} 7... h4 {[%clk 0:02:29.3]} 8. h3 {[%clk 0:02:36.6]} 8... e5
{[%clk 0:02:26.5]} 9. Nf3 {[%clk 0:02:35.5]} 9... Nd4 {[%clk 0:02:25.8]} 10. Nd5
{[%clk 0:02:29.2]} 10... Ne7 {[%clk 0:02:25.1]} 11. c3 {[%clk 0:02:27.7]} 11...
Nxf3+ {[%clk 0:02:24.6]} 12. Qxf3 {[%clk 0:02:27.2]} 12... Nxd5 {[%clk
0:02:25.1]} 13. exd5 {[%clk 0:02:27.3]} 13... Bf5 {[%clk 0:02:24.6]} 14. fxe5
{[%clk 0:02:21.9]} 14... dxe5 {[%clk 0:02:24.1]} 15. O-O {[%clk 0:02:17.8]}
15... Qd7 {[%clk 0:02:19.6]} 16. Re1 {[%clk 0:01:55.4]} 16... O-O-O {[%clk
0:02:13.6]} 17. Be3 {[%clk 0:01:48.9]} 17... Qd6 {[%clk 0:02:10.9]} 18. b4
{[%clk 0:01:42.5]} 18... Bxd3 {[%clk 0:02:04.9]} 19. Bxc5 {[%clk 0:01:39.6]}
19... e4 {[%clk 0:01:51]} 20. Qg4+ {[%clk 0:01:27.9]} 20... Qd7 {[%clk
0:01:50.5]} 21. Bxe4 {[%clk 0:01:27.2]} 21... Qxg4+ {[%clk 0:01:48.9]} 22. hxg4
{[%clk 0:01:25.3]} 22... Bxe4 {[%clk 0:01:47.8]} 23. Rxe4 {[%clk 0:01:25.2]}
23... b6 {[%clk 0:01:42.5]} 24. Bd4 {[%clk 0:01:23.3]} 24... Bxd4+ {[%clk
0:01:42.5]} 25. Rxd4 {[%clk 0:01:23.3]} 25... Rde8 {[%clk 0:01:43]} 26. Rf1
{[%clk 0:01:21.6]} 26... h3 {[%clk 0:01:36.7]} 27. Rdf4 {[%clk 0:00:59.2]} 27...
Re5 {[%clk 0:01:32.4]} 28. Rxf7 {[%clk 0:00:54.6]} 28... Rxg5 {[%clk 0:01:32.5]}
29. Rxa7 {[%clk 0:00:49.4]} 29... Rxg4+ {[%clk 0:01:32.1]} 30. Kh1 {[%clk
0:00:49.2]} 30... Kb8 {[%clk 0:01:03]} 31. Rff7 {[%clk 0:00:47.3]} 31... Rc4
{[%clk 0:00:56.5]} 32. Rfb7+ {[%clk 0:00:45.2]} 32... Kc8 {[%clk 0:00:56.8]} 33.
Rg7 {[%clk 0:00:43.4]} 33... Kb8 {[%clk 0:00:54.7]} 34. d6 {[%clk 0:00:18]}
34... Rf8 {[%clk 0:00:05.9]} 35. Rgb7+ {[%clk 0:00:16.5]} 35... Kc8 {[%clk
0:00:06.3]} 36. d7+ {[%clk 0:00:14.6]} 36... Kd8 {[%clk 0:00:06.9]} 37. Rb8+
{[%clk 0:00:13.1]} 37... Ke7 {[%clk 0:00:07.5]} 38. Rxf8 {[%clk 0:00:11.2]}
38... Rxc3 {[%clk 0:00:04.7]} 39. d8=Q+ {[%clk 0:00:10.7]} 39... Ke6 {[%clk
0:00:05.6]} 40. Rf6+ {[%clk 0:00:09.9]} 40... Ke5 {[%clk 0:00:06.5]} 41. Qd6+
{[%clk 0:00:09.3]} 41... Ke4 {[%clk 0:00:06.5]} 42. Re7# {[%clk 0:00:08.8]} 1-0

[Event "*** Titled Tuesday Blitz"]
[Site "Chess.com"]
[Date "2021.04.20"]
[Round "4"]
[White "dodorox"]
[Black "VladaSviridova"]
[Result "0-1"]
[WhiteElo "2101"]
[BlackElo "2267"]
[TimeControl "180+1"]
[EndTime "10:38:21 PDT"]
[Termination "VladaSviridova won on time"]

1. d4 {[%clk 0:03:00.9]} 1... d5 {[%clk 0:02:59.9]} 2. c4 {[%clk 0:02:59.9]}
2... c6 {[%clk 0:03:00.3]} 3. cxd5 {[%clk 0:02:59.9]} 3... cxd5 {[%clk 0:03:00]}
4. Nc3 {[%clk 0:03:00.6]} 4... Nf6 {[%clk 0:03:00.3]} 5. Bf4 {[%clk 0:03:01.1]}
5... Nc6 {[%clk 0:02:59.3]} 6. e3 {[%clk 0:03:01.6]} 6... a6 {[%clk 0:02:59.2]}
7. Bd3 {[%clk 0:03:01.1]} 7... Bg4 {[%clk 0:02:59.2]} 8. Nge2 {[%clk 0:03:00.4]}
8... e6 {[%clk 0:02:58.1]} 9. O-O {[%clk 0:03:00.1]} 9... Bd6 {[%clk 0:02:58]}
10. Bxd6 {[%clk 0:02:54.3]} 10... Qxd6 {[%clk 0:02:57.7]} 11. Rc1 {[%clk
0:02:37.4]} 11... O-O {[%clk 0:02:53.9]} 12. Na4 {[%clk 0:02:33.3]} 12... Nd7
{[%clk 0:02:49.8]} 13. f3 {[%clk 0:02:28.3]} 13... Bh5 {[%clk 0:02:41]} 14. Nc5
{[%clk 0:02:27.1]} 14... Nxc5 {[%clk 0:02:34.9]} 15. Rxc5 {[%clk 0:02:26.9]}
15... Bg6 {[%clk 0:02:13.4]} 16. Bxg6 {[%clk 0:02:19]} 16... hxg6 {[%clk
0:02:13]} 17. Qc2 {[%clk 0:02:04]} 17... Rac8 {[%clk 0:02:08.6]} 18. Rc1 {[%clk
0:02:02.5]} 18... Nb4 {[%clk 0:01:34.1]} 19. Qb3 {[%clk 0:01:49.2]} 19... Rxc5
{[%clk 0:01:08.2]} 20. dxc5 {[%clk 0:01:41.6]} 20... Qe5 {[%clk 0:01:04.8]} 21.
Qxb4 {[%clk 0:01:18.1]} 21... Qxe3+ {[%clk 0:01:04.1]} 22. Kf1 {[%clk
0:01:18.6]} 22... e5 {[%clk 0:00:48.7]} 23. Qc3 {[%clk 0:01:08.8]} 23... Qg5
{[%clk 0:00:41.8]} 24. Rd1 {[%clk 0:01:07.2]} 24... d4 {[%clk 0:00:41.5]} 25.
Qc4 {[%clk 0:01:01.3]} 25... Rc8 {[%clk 0:00:34.4]} 26. b4 {[%clk 0:01:00.1]}
26... Rc7 {[%clk 0:00:28.7]} 27. Ng3 {[%clk 0:00:53.6]} 27... Qf4 {[%clk
0:00:22.2]} 28. Qc1 {[%clk 0:00:42.5]} 28... Qh4 {[%clk 0:00:19.5]} 29. Kg1
{[%clk 0:00:41.1]} 29... f5 {[%clk 0:00:18.3]} 30. a4 {[%clk 0:00:34.1]} 30...
Kh7 {[%clk 0:00:17.1]} 31. Re1 {[%clk 0:00:22.4]} 31... Qf6 {[%clk 0:00:15]} 32.
Qc4 {[%clk 0:00:16.2]} 32... Re7 {[%clk 0:00:13.9]} 33. b5 {[%clk 0:00:15.8]}
33... axb5 {[%clk 0:00:13.5]} 34. axb5 {[%clk 0:00:16]} 34... g5 {[%clk
0:00:13.4]} 35. Qc1 {[%clk 0:00:14.2]} 35... g6 {[%clk 0:00:12.7]} 36. Nf1
{[%clk 0:00:09.6]} 36... e4 {[%clk 0:00:12.2]} 37. fxe4 {[%clk 0:00:07.4]} 37...
fxe4 {[%clk 0:00:12.4]} 38. Qc4 {[%clk 0:00:07.6]} 38... e3 {[%clk 0:00:10.8]}
39. Qe2 {[%clk 0:00:07]} 39... d3 {[%clk 0:00:09.8]} 40. Qf3 {[%clk 0:00:03.8]}
40... Qxf3 {[%clk 0:00:08.4]} 41. gxf3 {[%clk 0:00:03.7]} 41... d2 {[%clk
0:00:08.4]} 42. Rd1 {[%clk 0:00:01.6]} 42... e2 {[%clk 0:00:08.2]} 0-1

[Event "*** Titled Tuesday Blitz"]
[Site "Chess.com"]
[Date "2021.04.20"]
[Round "4"]
[White "esrosenberg"]
[Black "ZaphenathPaneah"]
[Result "1-0"]
[WhiteElo "2197"]
[BlackElo "1797"]
[TimeControl "180+1"]
[EndTime "10:38:26 PDT"]
[Termination "esrosenberg won by resignation"]

1. Nf3 {[%clk 0:03:00.9]} 1... d5 {[%clk 0:02:50.3]} 2. c4 {[%clk 0:03:00.4]}
2... e6 {[%clk 0:02:50.4]} 3. d4 {[%clk 0:03:00.2]} 3... Nf6 {[%clk 0:02:50.6]}
4. g3 {[%clk 0:03:00.5]} 4... Be7 {[%clk 0:02:50.3]} 5. Bg2 {[%clk 0:03:00.7]}
5... O-O {[%clk 0:02:50.9]} 6. O-O {[%clk 0:03:01]} 6... Ne4 {[%clk 0:02:49.2]}
7. Qc2 {[%clk 0:02:56.7]} 7... c6 {[%clk 0:02:48]} 8. Nfd2 {[%clk 0:02:49.3]}
8... f5 {[%clk 0:02:47.2]} 9. Nc3 {[%clk 0:02:39.5]} 9... Nd7 {[%clk 0:02:35.4]}
10. f3 {[%clk 0:02:39]} 10... Nd6 {[%clk 0:02:31]} 11. e4 {[%clk 0:02:39]} 11...
fxe4 {[%clk 0:02:30.5]} 12. fxe4 {[%clk 0:02:39.2]} 12... Rxf1+ {[%clk
0:02:30.4]} 13. Bxf1 {[%clk 0:02:31.6]} 13... dxe4 {[%clk 0:02:15.1]} 14. Ndxe4
{[%clk 0:02:21.1]} 14... Nxe4 {[%clk 0:02:12]} 15. Nxe4 {[%clk 0:02:15.6]} 15...
Nf6 {[%clk 0:02:11.7]} 16. Be3 {[%clk 0:02:12.5]} 16... Bd7 {[%clk 0:02:04.8]}
17. Rd1 {[%clk 0:02:02]} 17... Ng4 {[%clk 0:02:03.3]} 18. Bf4 {[%clk 0:01:56.6]}
18... Qb6 {[%clk 0:01:43.3]} 19. c5 {[%clk 0:01:26.1]} 19... Qd8 {[%clk
0:01:38.2]} 20. h3 {[%clk 0:01:21.2]} 20... Nf6 {[%clk 0:01:37.9]} 21. Ng5
{[%clk 0:01:13.1]} 21... h6 {[%clk 0:01:34]} 22. Nf3 {[%clk 0:01:08.9]} 22...
Nd5 {[%clk 0:01:32.6]} 23. Qd2 {[%clk 0:00:56.6]} 23... Nxf4 {[%clk 0:01:15.5]}
24. Qxf4 {[%clk 0:00:53.9]} 24... Qf8 {[%clk 0:01:15]} 25. Qxf8+ {[%clk
0:00:46.2]} 25... Rxf8 {[%clk 0:01:14.3]} 26. Ne5 {[%clk 0:00:46.6]} 26... Be8
{[%clk 0:01:13.3]} 27. Bc4 {[%clk 0:00:46]} 27... Rf6 {[%clk 0:01:08.3]} 28. Ng4
{[%clk 0:00:32.4]} 28... Rg6 {[%clk 0:01:04.1]} 29. Bd3 {[%clk 0:00:30.6]} 29...
Rg5 {[%clk 0:01:03.5]} 30. Re1 {[%clk 0:00:29.6]} 30... Bf7 {[%clk 0:00:52.8]}
31. Kg2 {[%clk 0:00:21]} 31... Rd5 {[%clk 0:00:48.7]} 32. Bc4 {[%clk 0:00:14.7]}
32... Rxd4 {[%clk 0:00:48.9]} 33. Bxe6 {[%clk 0:00:15.2]} 33... Rd2+ {[%clk
0:00:47.8]} 34. Kf3 {[%clk 0:00:14.2]} 34... Bxe6 {[%clk 0:00:48]} 35. Rxe6
{[%clk 0:00:13.9]} 35... Bxc5 {[%clk 0:00:48.9]} 36. Re8+ {[%clk 0:00:12.2]}
36... Kf7 {[%clk 0:00:48.6]} 37. Rb8 {[%clk 0:00:11.5]} 37... Rxb2 {[%clk
0:00:47.9]} 38. Ne5+ {[%clk 0:00:10.7]} 38... Ke6 {[%clk 0:00:47.8]} 39. Nd3
{[%clk 0:00:10.2]} 39... Rc2 {[%clk 0:00:46.6]} 40. Nxc5+ {[%clk 0:00:08.6]}
40... Rxc5 {[%clk 0:00:46.5]} 41. Rxb7 {[%clk 0:00:09.5]} 41... Ra5 {[%clk
0:00:44.6]} 42. Rxg7 {[%clk 0:00:08.6]} 42... Rxa2 {[%clk 0:00:44.6]} 43. Rg6+
{[%clk 0:00:09.1]} 43... Ke5 {[%clk 0:00:44.6]} 44. Rxh6 {[%clk 0:00:10]} 44...
a5 {[%clk 0:00:44.4]} 45. Rxc6 {[%clk 0:00:09.8]} 45... a4 {[%clk 0:00:44]} 46.
Ra6 {[%clk 0:00:09.9]} 46... a3 {[%clk 0:00:44.3]} 47. Kg4 {[%clk 0:00:08.8]}
47... Ra1 {[%clk 0:00:44.4]} 48. h4 {[%clk 0:00:08.7]} 48... a2 {[%clk
0:00:44.4]} 49. Kh5 {[%clk 0:00:07.7]} 49... Kd4 {[%clk 0:00:38.2]} 50. g4
{[%clk 0:00:07.4]} 50... Kc3 {[%clk 0:00:38.7]} 51. g5 {[%clk 0:00:08]} 51...
Kb2 {[%clk 0:00:39.3]} 52. g6 {[%clk 0:00:08.1]} 52... Rg1 {[%clk 0:00:38.6]}
53. Rxa2+ {[%clk 0:00:07.4]} 53... Kxa2 {[%clk 0:00:39.5]} 54. Kh6 {[%clk
0:00:07.7]} 54... Kb3 {[%clk 0:00:37.7]} 55. g7 {[%clk 0:00:06]} 55... Kc4
{[%clk 0:00:35.5]} 56. h5 {[%clk 0:00:02.7]} 56... Kd4 {[%clk 0:00:32]} 57. Kh7
{[%clk 0:00:03.3]} 57... Rh1 {[%clk 0:00:27.5]} 58. h6 {[%clk 0:00:03.5]} 1-0

[Event "*** Titled Tuesday Blitz"]
[Site "Chess.com"]
[Date "2021.04.20"]
[Round "4"]
[White "Sychev_Klementy"]
[Black "Witik"]
[Result "1-0"]
[WhiteElo "2903"]
[BlackElo "2678"]
[TimeControl "180+1"]
[EndTime "10:38:28 PDT"]
[Termination "Sychev_Klementy won on time"]

1. e4 {[%clk 0:03:00.9]} 1... c6 {[%clk 0:02:45]} 2. Nc3 {[%clk 0:02:58.8]} 2...
d5 {[%clk 0:02:44.9]} 3. d3 {[%clk 0:02:59.3]} 3... Nf6 {[%clk 0:02:42.7]} 4. e5
{[%clk 0:02:58.8]} 4... Nfd7 {[%clk 0:02:41.5]} 5. d4 {[%clk 0:02:56.3]} 5... e6
{[%clk 0:02:41.7]} 6. f4 {[%clk 0:02:56.7]} 6... c5 {[%clk 0:02:39.8]} 7. Nf3
{[%clk 0:02:56.9]} 7... Nc6 {[%clk 0:02:39.7]} 8. Be3 {[%clk 0:02:57.4]} 8...
cxd4 {[%clk 0:02:38.9]} 9. Nxd4 {[%clk 0:02:57]} 9... Bc5 {[%clk 0:02:39.4]} 10.
Qd2 {[%clk 0:02:56.3]} 10... O-O {[%clk 0:02:37.5]} 11. O-O-O {[%clk 0:02:55.6]}
11... Bxd4 {[%clk 0:02:35.4]} 12. Bxd4 {[%clk 0:02:55.5]} 12... a6 {[%clk
0:02:36]} 13. Bf2 {[%clk 0:02:49.3]} 13... b5 {[%clk 0:02:24.1]} 14. Ne2 {[%clk
0:02:43.3]} 14... Nb6 {[%clk 0:02:21.5]} 15. Nd4 {[%clk 0:02:42.8]} 15... Bd7
{[%clk 0:02:17.8]} 16. h4 {[%clk 0:02:39.4]} 16... Qc7 {[%clk 0:02:04.2]} 17. h5
{[%clk 0:02:31.6]} 17... Rfc8 {[%clk 0:01:58.1]} 18. h6 {[%clk 0:02:25.6]} 18...
g6 {[%clk 0:01:53.9]} 19. Nxc6 {[%clk 0:02:18.9]} 19... Qxc6 {[%clk 0:01:50.2]}
20. Bd4 {[%clk 0:02:18.3]} 20... b4 {[%clk 0:01:40.8]} 21. Bd3 {[%clk
0:02:15.3]} 21... Rab8 {[%clk 0:01:36.3]} 22. Qxb4 {[%clk 0:01:42.5]} 22... Nc4
{[%clk 0:01:14.3]} 23. Qe7 {[%clk 0:01:40.9]} 23... Qa4 {[%clk 0:00:30.8]} 24.
Qf6 {[%clk 0:01:36.2]} 24... Kf8 {[%clk 0:00:30.9]} 25. f5 {[%clk 0:00:36.5]}
25... exf5 {[%clk 0:00:17.5]} 26. Bc5+ {[%clk 0:00:16]} 26... Rxc5 {[%clk
0:00:17.2]} 27. Qh8+ {[%clk 0:00:16.2]} 27... Ke7 {[%clk 0:00:17.4]} 28. Qxb8
{[%clk 0:00:16.6]} 28... Qxa2 {[%clk 0:00:16.6]} 29. Bxc4 {[%clk 0:00:16.1]}
29... Qxc4 {[%clk 0:00:16.3]} 30. c3 {[%clk 0:00:15.8]} 30... Be6 {[%clk
0:00:13.4]} 31. Qd6+ {[%clk 0:00:14.9]} 31... Ke8 {[%clk 0:00:13.2]} 32. Kb1
{[%clk 0:00:13.2]} 32... Rb5 {[%clk 0:00:09.8]} 33. Qa3 {[%clk 0:00:10.5]} 33...
a5 {[%clk 0:00:08.5]} 34. Rd4 {[%clk 0:00:10.6]} 34... Qc6 {[%clk 0:00:08.8]}
35. Qa4 {[%clk 0:00:10.3]} 35... Qb6 {[%clk 0:00:07.9]} 36. Ka1 {[%clk
0:00:09.4]} 36... Ke7 {[%clk 0:00:05.9]} 37. Rhd1 {[%clk 0:00:09.5]} 37... f4
{[%clk 0:00:06.1]} 38. c4 {[%clk 0:00:09.5]} 38... Rb4 {[%clk 0:00:06.1]} 39.
Qa3 {[%clk 0:00:08.8]} 39... Qc5 {[%clk 0:00:04.3]} 40. cxd5 {[%clk 0:00:08.3]}
40... Bf5 {[%clk 0:00:03]} 41. e6 {[%clk 0:00:06]} 41... fxe6 {[%clk 0:00:01.9]}
42. d6+ {[%clk 0:00:06.5]} 42... Kd7 {[%clk 0:00:02.3]} 43. Rxb4 {[%clk
0:00:06.8]} 43... axb4 {[%clk 0:00:02.9]} 44. Qa4+ {[%clk 0:00:07.3]} 44... Kd8
{[%clk 0:00:02.8]} 45. d7 {[%clk 0:00:07.4]} 45... Bc2 {[%clk 0:00:01.3]} 46.
Qa8+ {[%clk 0:00:07.1]} 1-0